bitfinex/quotes_ETHUSD_20220106
["timestamp","ask_amount","ask_price","bid_price","bid_amount"]
[1641483427265,2.1050975,3391.0,3390.9,17.10617393]
[1641483427465,0.6827337,3391.1,3391.0,10.8]
[1641483427670,1.41036418,3391.4,3391.2,0.4421655]
[1641483427868,1.41036418,3391.6,3391.3,10.41035807]
[1641483428267,1.41434314,3391.6,3391.3,0.73695]
[1641483428668,1.41434314,3391.6,3391.4,0.73695]
[1641483428870,1.41434314,3391.6,3391.4,1.1791742]
[1641483429111,1.41434314,3391.6,3391.4,2.24557111]
[1641483429311,1.41434314,3391.6,3391.4,1.06639691]
[1641483429710,1.41434314,3391.6,3391.2,1.06639691]
[1641483430511,1.41434314,3391.6,3391.2,1.80354691]
[1641483430711,1.41434314,3391.6,3391.2,2.54065691]
[1641483430915,1.41434314,3391.6,3391.3,0.51570599]
[1641483432015,1.41434314,3391.6,3391.3,0.07345419]
[1641483432614,1.12145169,3391.5,3391.3,0.07345419]
[1641483432877,1.41036418,3391.4,3391.3,0.07345419]
[1641483433067,1.41320629,3391.4,3391.3,0.07345419]
[1641483434171,1.41320629,3391.4,3391.2,0.07345419]
[1641483434569,0.00227369,3391.3,3391.2,0.07345419]
[1641483437214,0.00227369,3391.3,3391.2,0.07829051]
[1641483437417,0.00227369,3391.3,3391.2,0.00483632]
[1641483440376,0.00227369,3391.3,3391.2,0.07829051]
[1641483441074,0.00227369,3391.3,3391.2,2.92829051]
[1641483441475,0.00227369,3391.3,3391.2,3.92829051]
[1641483441875,0.00227369,3391.3,3391.2,4.66541051]
[1641483442077,0.00227369,3391.3,3391.2,3.66541051]
[1641483443477,0.00312591,3391.3,3391.2,3.66541051]
[1641483445026,0.00312591,3391.3,3391.2,7.06541051]
[1641483445628,0.00312591,3391.3,3391.2,7.03176051]
[1641483446427,0.00312591,3391.3,3391.2,4.69815742]
[1641483446632,0.00312591,3391.3,3391.2,5.69815742]
[1641483447027,0.00312591,3391.3,3391.2,4.63176051]
[1641483447967,0.00312591,3391.3,3391.2,10.67092154]
[1641483448773,0.00312591,3391.3,3391.2,11.73731845]
[1641483449171,0.00312591,3391.3,3391.2,6.38731845]
[1641483449976,0.00312591,3391.3,3391.2,2.53731845]
[1641483451076,1.7676353,3391.3,3391.2,4.42092154]
[1641483451278,1.7676353,3391.3,3391.2,1.47092154]
[1641483452323,0.00312591,3391.3,3391.2,1.47092154]
[1641483452720,1.41036418,3391.4,3391.3,10.8]
[1641483453019,1.41036418,3391.7,3391.4,0.7369]
[1641483453221,0.007,3391.8,3391.4,4.15437522]
[1641483453419,0.00227369,3391.7,3391.4,2.53723582]
[1641483453619,1.41263787,3391.7,3391.5,0.4421379]
[1641483453920,0.00170527,3391.6,3391.5,0.4421379]
[1641483454321,0.00170527,3391.6,3391.3,2.15566409]
[1641483454521,1.41036418,3391.5,3391.3,2.15566409]
[1641483454720,1.41150103,3391.5,3391.3,2.15566409]
[1641483454922,1.41150103,3391.5,3391.3,0.04464051]
[1641483455119,0.00113685,3391.5,3391.3,0.04464051]
[1641483455370,0.00113685,3391.5,3391.4,0.21101162]
[1641483455870,1.41150103,3391.5,3391.4,0.21101162]
[1641483456469,1.41150103,3391.5,3391.4,0.25565213]
[1641483456670,1.41150103,3391.5,3391.4,1.13992793]
[1641483456870,1.41150103,3391.5,3391.4,9.63992793]
[1641483457070,1.41150103,3391.5,3391.4,10.63992793]
[1641483457071,1.36150103,3391.5,3391.4,10.63992793]
[1641483457371,0.007,3391.8,3391.4,10.63992793]
[1641483457572,0.007,3391.8,3391.6,0.73692]
[1641483457770,0.007,3391.8,3391.6,1.1790674]
[1641483457771,1.41150102,3391.7,3391.6,1.1790674]
[1641483459619,1.41150102,3391.7,3391.6,1.22370791]
[1641483460820,1.41150102,3391.7,3391.6,4.37370791]
[1641483461021,1.41150102,3391.7,3391.6,5.37370791]
[1641483462422,1.41150102,3391.7,3391.6,2.22370791]
[1641483463667,1.41150102,3391.7,3391.6,1.22370791]
[1641483464067,1.40524419,3391.7,3391.6,7.42370791]
[1641483464266,0.007,3391.8,3391.6,4.72370791]
[1641483464467,1.41036418,3391.7,3391.6,1.22370791]
[1641483465473,1.41036418,3391.7,3391.6,0.48678791]
[1641483466167,1.38735824,3391.7,3391.6,0.48678791]
[1641483466368,0.007,3391.8,3391.6,0.48678791]
[1641483466625,1.41036418,3391.7,3391.6,0.48678791]
[1641483470372,1.41036418,3391.7,3391.6,1.23132303]
[1641483472077,1.41036418,3391.7,3391.2,1.47401]
[1641483472078,3.5,3391.6,3390.6,2.13434317]
[1641483472273,5.91712884,3391.6,3390.6,2.87159317]
[1641483472473,5.91712884,3391.6,3391.2,0.00284211]
[1641483472474,1.71036418,3391.5,3391.2,0.00284211]
[1641483472872,19.01036418,3391.5,3391.2,0.00284211]
[1641483473078,8.95,3391.2,3390.3,2.13434317]
[1641483473276,10.2769,3391.2,3390.9,0.00170527]
[1641483473474,18.3,3391.1,3390.9,0.00170527]
[1641483473673,17.3,3391.0,3390.9,0.00170527]
[1641483474124,18.3,3391.0,3390.9,0.00170527]
[1641483474327,18.651,3391.0,3390.9,5.27e-06]
[1641483474529,20.126,3391.0,3390.1,0.00625266]
[1641483474725,4.67916426,3390.9,3390.1,0.00455266]
[1641483474925,0.73764,3390.5,3390.1,0.00455266]
[1641483475127,19.9118066,3390.4,3390.1,0.00455266]
[1641483475327,2.59167939,3390.3,3390.1,0.00455266]
[1641483475526,2.33677096,3390.3,3390.1,0.00455266]
[1641483475726,17.3,3390.2,3390.1,0.00455266]
[1641483476627,4.3475,3390.8,3390.1,0.00455266]
[1641483476825,7.26337702,3390.8,3390.1,0.00455266]
[1641483477028,17.3,3390.7,3390.1,0.00455266]
[1641483477225,4.6475,3390.8,3390.1,0.00455266]
[1641483477425,7.25810618,3390.8,3390.1,0.00455266]
[1641483477628,3.26160618,3390.8,3390.1,0.00455266]
[1641483477887,1.63040711,3390.2,3390.1,0.00455266]
[1641483479479,18.0375,3390.7,3390.1,0.00455266]
[1641483479678,5.93,3391.0,3390.1,0.00455266]
[1641483479879,0.00113684,3391.4,3390.1,0.00455266]
[1641483480081,0.00113684,3391.4,3390.6,0.73725]
[1641483480280,0.00226842,3391.3,3390.6,0.73725]
[1641483480482,0.00226842,3391.3,3390.7,0.00114212]
[1641483480685,0.0017,3391.2,3390.7,0.00114212]
[1641483481084,0.00113157,3391.1,3390.7,0.00114212]
[1641483481488,0.00283684,3391.4,3390.7,0.00114212]
[1641483481719,0.00283684,3391.4,3390.8,0.4423459]
[1641483481921,0.00226842,3391.3,3390.7,0.00114212]
[1641483482320,0.0017,3391.2,3390.6,0.00171054]
[1641483482720,0.00113157,3391.1,3390.6,0.00171054]
[1641483483122,0.00226842,3391.3,3390.6,0.00171054]
[1641483483523,1.41036418,3391.4,3390.6,0.00171054]
[1641483483524,0.0017,3391.2,3390.6,0.00171054]
[1641483483926,0.00113157,3391.1,3390.6,0.00171054]
[1641483484323,0.00226842,3391.3,3390.6,0.00171054]
[1641483484723,0.0017,3391.2,3390.6,0.00171054]
[1641483485127,0.00113157,3391.1,3390.6,2.95031054]
[1641483485575,0.00226842,3391.3,3390.7,1.00114212]
[1641483485773,0.00226842,3391.3,3391.2,8.60302608]
[1641483485971,1.41036418,3391.4,3391.2,9.34005608]
[1641483486172,1.41036418,3391.7,3391.2,11.05335608]
[1641483486370,1.41036418,3391.7,3391.3,1.0]
[1641483486574,1.41490629,3391.7,3391.3,1.0]
[1641483487471,1.41490629,3391.7,3391.5,0.73703]
[1641483488471,1.41490629,3391.7,3391.5,0.74097434]
[1641483488670,1.41490629,3391.7,3391.5,1.47788434]
[1641483489170,1.41490629,3391.7,3391.5,2.47788434]
[1641483492660,1.41490629,3391.7,3391.6,10.41709409]
[1641483493071,1.41490629,3391.7,3391.6,11.41709409]
[1641483493672,1.41490629,3391.7,3391.6,1.51709409]
[1641483494275,1.41490629,3391.7,3391.6,0.51709409]
[1641483497330,9.35,3391.6,3391.5,0.00394434]
[1641483497725,26.65397369,3391.6,3391.5,0.00394434]
[1641483497924,26.65397369,3391.6,3390.9,0.95144665]
[1641483497925,27.00497369,3391.6,3390.9,0.95144665]
[1641483498125,4.95,3390.7,3390.4,2.13434317]
[1641483498325,5.25,3390.7,3390.4,2.13434317]
[1641483498626,17.3,3390.6,3390.5,0.00113685]
[1641483498828,19.27945185,3390.6,3390.5,0.00113685]
[1641483499027,19.57945185,3390.6,3390.5,0.00113685]
[1641483499424,19.57945185,3390.6,3390.1,0.00341054]
[1641483499628,20.31698185,3390.6,3390.1,0.00341054]
[1641483500025,20.01698185,3390.6,3390.1,0.00341054]
[1641483500227,1.97945185,3390.6,3390.1,0.00341054]
[1641483500881,2.27945185,3390.6,3390.1,0.00341054]
[1641483502684,19.57945185,3390.6,3390.1,0.00341054]
[1641483502883,19.27945185,3390.6,3390.1,0.00341054]
[1641483503682,19.57945185,3390.6,3390.1,0.00341054]
[1641483504939,2.27945185,3390.6,3390.1,0.00341054]
[1641483505337,19.57945185,3390.6,3390.1,0.00341054]
[1641483505537,19.27945185,3390.6,3390.1,0.00341054]
[1641483506438,19.57945185,3390.6,3390.1,0.00341054]
[1641483506636,2.27945185,3390.6,3390.1,0.00341054]
[1641483506838,1.97945185,3390.6,3390.1,0.00341054]
[1641483507037,19.27945185,3390.6,3390.1,0.00341054]
[1641483508267,1.97945185,3390.6,3390.1,0.00341054]
[1641483510269,0.95144665,3390.9,3390.1,0.00341054]
[1641483510972,0.95144665,3390.9,3390.2,1.32098728]
[1641483511369,0.95144665,3390.9,3390.4,0.7373]
[1641483511637,0.95144665,3390.9,3390.5,0.884621]
[1641483511825,0.95144665,3390.9,3390.6,0.73723]
[1641483512030,0.95144665,3390.9,3390.5,0.884621]
[1641483512629,0.95144665,3390.9,3390.6,0.73723]
[1641483513233,0.95144665,3390.9,3390.6,1.47446]
[1641483513626,0.95144665,3390.9,3390.6,0.73723]
[1641483514628,0.95144665,3390.9,3390.6,1.47447]
[1641483517572,0.90144665,3390.9,3390.6,1.47447]
[1641483517773,0.90144665,3390.9,3390.7,1.35509197]
[1641483520921,0.90144665,3390.9,3390.7,2.71839244]
[1641483521126,0.90144665,3390.9,3390.7,3.45559244]
[1641483521322,0.90144665,3390.9,3390.8,10.8]
[1641483521523,0.90144665,3390.9,3390.8,11.8]
[1641483521722,0.9025835,3390.9,3390.8,11.8]
[1641483521922,0.9025835,3390.9,3390.7,3.45559244]
[1641483522121,0.9025835,3390.9,3390.7,2.09229197]
[1641483522323,0.9025835,3390.9,3390.7,1.02111089]
[1641483522523,0.9025835,3390.9,3390.8,9.91215232]
[1641483522725,0.34643019,3390.9,3390.8,9.91215232]
[1641483522975,0.34643019,3390.9,3390.8,1.71215232]
[1641483523172,0.34643019,3390.9,3390.8,5.76215232]
[1641483523369,0.34643019,3390.9,3390.8,4.33391089]
[1641483523573,0.34643019,3390.9,3390.8,0.28391089]
[1641483524170,0.34643019,3390.9,3390.8,4.43391089]
[1641483525173,0.34643019,3390.9,3390.8,5.86215232]
[1641483526474,0.34643019,3390.9,3390.8,1.71215232]
[1641483526725,0.34643019,3390.9,3390.8,0.28391089]
[1641483527127,0.34643019,3390.9,3390.8,3.13391089]
[1641483528445,0.34643019,3390.9,3390.8,2.85]
[1641483528825,0.34643019,3390.9,3390.7,2.17598011]
[1641483529026,0.34643019,3390.9,3390.8,5.50140664]
[1641483531377,0.34643019,3390.9,3390.8,0.25140664]
[1641483533182,0.34643019,3390.9,3390.8,3.75140664]
[1641483534324,0.23733019,3390.9,3390.8,4.75140664]
[1641483534528,0.23733019,3390.9,3390.8,6.22557664]
[1641483534725,1.41036418,3391.5,3391.2,0.73698]
[1641483534926,1.41036418,3391.7,3391.3,1.34485044]
[1641483535126,0.00284211,3391.4,3391.3,5.05565044]
[1641483535326,1.41320629,3391.4,3391.3,3.44991312]
[1641483535526,1.41320629,3391.4,3391.3,4.44991312]
[1641483535925,1.41320629,3391.4,3391.3,3.05646932]
[1641483536125,1.41320629,3391.4,3391.3,0.25140664]
[1641483538176,1.41320629,3391.4,3391.1,0.73713]
[1641483538573,0.00227369,3391.3,3391.1,0.73713]
[1641483538973,0.00170527,3391.2,3391.1,0.73713]
[1641483539373,0.00227369,3391.2,3391.1,0.73713]
[1641483540475,0.00089862,3391.2,3391.1,0.73713]
[1641483542230,9.862e-05,3391.2,3391.1,15.99881967]
[1641483542431,9.862e-05,3391.2,3391.1,15.9998579]
[1641483543029,1.40847631,3391.4,3391.3,12.57825028]
[1641483543230,0.007,3391.8,3391.3,14.12894028]
[1641483543433,0.007,3391.8,3391.7,9.88042003]
[1641483543635,0.007,3391.8,3391.7,2.13042003]
[1641483543831,1.41736418,3391.8,3391.7,2.13042003]
[1641483544030,1.41736418,3391.8,3391.7,1.13042003]
[1641483544631,1.41736418,3391.8,3391.7,1.86732003]
[1641483545031,1.41736418,3391.8,3391.7,7.70947563]
[1641483545482,1.41736418,3391.8,3391.7,8.70947563]
[1641483545879,1.41736418,3391.8,3391.7,3.30947563]
[1641483546080,1.41736418,3391.8,3391.7,2.1790556]
[1641483546977,1.41736418,3391.8,3391.7,5.9790556]
[1641483548778,1.41736418,3391.8,3391.7,2.1790556]
[1641483551227,1.41736418,3391.8,3391.7,1.1790556]
[1641483551428,1.41736418,3391.8,3391.3,2.21073]
[1641483551429,10.8,3391.7,3391.2,1.06583824]
[1641483551626,10.8,3391.7,3391.2,0.89183824]
[1641483551627,7.51292581,3391.3,3391.2,0.89183824]
[1641483551825,22.45,3391.2,3391.1,1.08907111]
[1641483552025,5.15,3391.2,3391.1,1.08907111]
[1641483552224,0.01292581,3391.3,3391.1,1.08907111]
[1641483552430,1.47474,3391.3,3391.1,1.08907111]
[1641483552625,0.73735,3391.3,3391.1,1.08907111]
[1641483553175,0.73735,3391.3,3391.1,0.00113685]
[1641483553574,0.73735,3391.3,3390.3,0.00568423]
[1641483553778,2.46867437,3391.3,3390.3,0.00568423]
[1641483554175,1.47468,3391.3,3390.5,0.73729]
[1641483554374,0.73735,3391.3,3390.5,0.73729]
[1641483554574,0.73735,3391.3,3390.6,0.00397896]
[1641483554875,1.41036418,3391.4,3391.2,1.26141519]
[1641483555073,1.41036418,3391.4,3390.6,0.00397896]
[1641483555074,1.41036418,3391.4,3390.8,1.67494188]
[1641483555275,1.41036418,3391.6,3390.7,1.1794161]
[1641483555474,1.41036418,3391.4,3391.1,0.73711]
[1641483555875,1.41206945,3391.6,3391.1,0.73711]
[1641483556278,0.00113685,3391.5,3391.0,1.47424]
[1641483556476,1.41036418,3391.4,3391.0,1.47424]
[1641483556727,1.41036418,3391.4,3391.2,0.16858285]
[1641483557528,1.41036418,3391.4,3391.1,0.1697197]
[1641483557828,1.41036418,3391.4,3391.1,0.9068597]
[1641483558428,1.41036418,3391.4,3391.1,0.73827685]
[1641483559228,1.41036418,3391.4,3391.2,0.14510329]
[1641483559631,0.00113685,3391.5,3391.2,0.14510329]
[1641483561080,2.355151,3391.5,3391.2,0.14904793]
[1641483561881,2.355151,3391.5,3391.3,1.07945411]
[1641483562084,0.00113685,3391.5,3391.3,1.2245574]
[1641483562281,0.00113685,3391.5,3391.4,12.79447512]
[1641483562482,2.35401415,3391.7,3391.5,12.19513432]
[1641483562483,1.6780287,3391.7,3391.5,12.19513432]
[1641483562782,0.007,3391.8,3391.5,12.19513432]
[1641483562982,0.007,3391.8,3391.5,14.40577432]
[1641483563283,0.00113684,3391.7,3391.6,1.7369]
[1641483563485,0.00113684,3391.7,3391.6,4.26842121]
[1641483563683,0.00113684,3391.7,3391.6,14.31842121]
[1641483564140,5.169,3393.4,3391.8,10.8]
[1641483564328,0.07742167,3393.1,3393.0,12.59282842]
[1641483564529,0.00078093,3393.8,3393.6,1.18965231]
[1641483564726,5.94144438,3394.5,3393.7,10.8]
[1641483564926,0.37703704,3394.5,3393.7,10.8]
[1641483565127,0.37703704,3394.5,3393.7,11.3944]
[1641483565329,6.21051949,3395.0,3393.7,11.43309287]
[1641483565534,0.03591,3394.4,3393.8,11.16375426]
[1641483565734,13.15051949,3395.6,3394.3,10.8]
[1641483565932,0.01142454,3395.0,3394.5,0.01248898]
[1641483566228,6.21051949,3395.6,3395.0,0.08857546]
[1641483566632,0.68715824,3395.1,3395.0,0.08857546]
[1641483566829,0.68715824,3395.1,3395.0,2.24897044]
[1641483567231,0.68715824,3395.1,3395.0,3.24897044]
[1641483567629,5.824e-05,3395.1,3395.0,11.88857546]
[1641483567879,0.01142454,3395.1,3395.0,1.08857546]
[1641483568274,6.21051949,3395.6,3395.0,1.08857546]
[1641483568275,2.454e-05,3395.5,3395.0,2.56077546]
[1641483568475,2.454e-05,3395.5,3395.3,0.73593]
[1641483568674,1e-07,3395.5,3395.4,11.18124747]
[1641483568875,0.00885198,3396.0,3395.4,12.65296747]
[1641483569074,0.00885198,3396.0,3395.5,3.57222097]
[1641483569075,5.198e-05,3396.0,3395.5,3.57222097]
[1641483569279,7.369e-05,3395.9,3395.6,0.7925147]
[1641483569476,0.16832511,3397.6,3397.0,1.32283277]
[1641483569675,0.16832511,3397.6,3397.0,2.02473277]
[1641483570073,0.444945,3398.7,3397.0,3.02473277]
[1641483570273,0.13206042,3397.6,3397.0,2.32473277]
[1641483570474,6.21051949,3398.8,3397.2,10.83238056]
[1641483570678,13.85,3398.3,3397.3,2.65662221]
[1641483570878,13.85,3398.3,3397.2,2.12222]
[1641483570879,0.00909478,3397.5,3397.2,0.351]
[1641483571077,0.00909478,3397.5,3396.7,0.351]
[1641483571276,0.00852635,3397.4,3396.7,0.351]
[1641483571735,0.00795793,3397.3,3396.7,0.351]
[1641483571941,0.00795793,3397.3,3396.7,0.35493796]
[1641483572136,0.0073895,3397.2,3396.7,0.35493796]
[1641483572336,0.0073895,3397.2,3396.8,0.1634]
[1641483572537,0.00682108,3397.1,3396.8,0.1634]
[1641483572740,0.00682108,3397.1,3396.9,1.63871663]
[1641483572938,0.00625266,3397.0,3396.9,1.63871663]
[1641483573137,0.00625266,3397.0,3396.9,1.67525987]
[1641483573338,0.00625266,3397.0,3396.9,1.63871663]
[1641483573746,0.00625266,3397.0,3396.9,8.43871663]
[1641483574139,0.00625266,3397.0,3396.9,9.43871663]
[1641483574443,0.00625266,3397.0,3396.9,8.2414309]
[1641483574645,0.00625266,3397.0,3396.9,8.27904735]
[1641483574841,0.00625266,3397.0,3396.9,9.3026876]
[1641483575241,0.00625266,3397.0,3396.9,10.4087062]
[1641483575472,1.12382258,3397.8,3397.0,10.8]
[1641483575673,1.49878685,3398.0,3397.6,1.29224626]
[1641483575878,1.49878685,3398.0,3397.7,0.351]
[1641483576274,1.49878685,3398.0,3397.7,1.351]
[1641483576473,1.49878685,3398.0,3397.7,0.351]
[1641483576878,2.10038228,3398.2,3397.7,0.351]
[1641483577272,0.00625266,3398.1,3397.7,0.35493694]
[1641483577672,0.00863971,3398.0,3397.7,0.35493694]
[1641483578074,0.00511581,3397.9,3397.7,0.35493694]
[1641483578477,0.00454739,3397.8,3397.7,0.00393694]
[1641483579131,0.00454739,3397.8,3397.7,0.16733694]
[1641483579736,7.6539,3397.7,3397.0,1.41148442]
[1641483579933,7.65,3397.7,3397.0,1.41148442]
[1641483580133,0.00341054,3397.6,3397.0,1.41148442]
[1641483580332,0.00341054,3397.6,3395.7,0.07803849]
[1641483580333,0.00341054,3397.6,3397.1,2.8192]
[1641483580534,0.00284212,3397.5,3397.1,2.8192]
[1641483580732,0.00284212,3397.5,3396.9,1.41148442]
[1641483580931,0.00227369,3397.4,3396.9,1.41148442]
[1641483581133,1.66552403,3397.0,3396.9,1.41148442]
[1641483581334,0.3,3397.7,3396.0,1.28840529]
[1641483581335,0.00170527,3397.3,3396.4,1.41148442]
[1641483581737,0.00113684,3397.2,3396.5,0.00284212]
[1641483582033,0.00341054,3397.6,3396.5,0.00284212]
[1641483582435,1.96921031,3397.1,3396.5,0.00284212]
[1641483582882,1.96921031,3397.1,3396.3,1.41148442]
[1641483582883,2.26921031,3397.1,3396.4,0.00341054]
[1641483583079,3.26921031,3397.1,3396.4,0.00341054]
[1641483583280,2.26921031,3397.1,3396.4,0.00341054]
[1641483583481,1.96921031,3397.1,3396.4,0.00341054]
[1641483584082,1.49878685,3397.0,3396.5,2.497774]
[1641483584482,1.49878685,3397.0,3396.6,0.0022737]
[1641483585184,1.96921031,3397.1,3396.6,0.0022737]
[1641483585383,2.26921031,3397.1,3396.6,0.0022737]
[1641483585583,1.96921031,3397.1,3395.9,0.00625266]
[1641483585982,1.96921031,3397.1,3396.1,1.05942542]
[1641483585983,17.3,3397.0,3396.1,1.05942542]
[1641483586185,1.96921031,3397.1,3396.1,1.05942542]
[1641483586384,1.96921031,3397.1,3396.2,0.00454739]
[1641483586827,1.24679458,3396.9,3396.2,0.00454739]
[1641483587630,1.96921031,3397.1,3396.3,2.497774]
[1641483588028,1.96921031,3397.1,3396.4,0.00341054]
[1641483588226,0.00130438,3397.0,3396.4,0.00341054]
[1641483588826,0.00130438,3397.0,3396.5,2.497774]
[1641483589226,0.00130438,3397.0,3396.6,0.0022737]
[1641483590127,0.00130438,3397.0,3396.4,0.00341054]
[1641483590590,0.00130438,3397.0,3396.4,1.06283596]
[1641483590994,0.00130438,3397.0,3396.5,0.00284212]
[1641483591191,17.30130438,3397.0,3396.5,0.00284212]
[1641483591392,17.30130438,3397.0,3396.5,2.50061612]
[1641483591892,11.84299071,3396.9,3396.3,1.05942542]
[1641483592092,18.3,3396.8,3396.4,1.06155368]
[1641483592390,18.3,3396.8,3396.2,1.41148442]
[1641483592391,1.37233018,3396.4,3396.2,1.41148442]
[1641483592590,10.8,3396.2,3395.9,2.12049516]
[1641483592791,17.3,3396.1,3395.9,2.12049516]
[1641483592998,10.8,3396.0,3395.1,3.53263109]
[1641483593192,10.8,3396.0,3395.2,2.12722173]
[1641483593500,11.1,3396.0,3395.7,0.00511581]
[1641483593691,17.37118739,3395.9,3395.7,0.00511581]
[1641483594150,27.66780214,3395.8,3395.7,0.00511581]
[1641483594650,27.66780214,3395.8,3395.1,0.00852635]
[1641483595451,17.3,3395.6,3395.1,0.00852635]
[1641483595860,0.73666,3395.4,3395.1,0.00852635]
[1641483596055,0.351,3395.5,3394.1,3.53263109]
[1641483596056,0.9161,3394.6,3394.1,3.53263109]
[1641483596255,0.74910866,3394.3,3394.1,3.53263109]
[1641483596454,0.74910866,3394.3,3394.2,0.00511581]
[1641483596654,1.04910866,3394.3,3394.2,0.00511581]
[1641483596855,2.83835192,3394.3,3394.2,0.00511581]
[1641483597252,7.1,3394.2,3392.8,3.53263109]
[1641483597652,7.1,3394.2,3393.5,0.07691462]
[1641483598084,24.4,3394.2,3393.6,0.00341054]
[1641483598288,2.83835192,3394.3,3393.6,0.00341054]
[1641483598684,2.82606326,3394.3,3393.6,0.00341054]
[1641483598884,1.78924326,3394.3,3393.6,0.00341054]
[1641483599686,1.78924326,3394.3,3392.9,1.27973162]
[1641483599687,1.78924326,3394.3,3393.1,0.5894002]
[1641483600085,1.78924326,3394.3,3393.2,0.00568423]
[1641483600486,1.78924326,3394.3,3393.1,3.53888375]
[1641483600891,1.78924326,3394.3,3393.2,0.00568423]
[1641483601288,1.78924326,3394.3,3393.5,1.35407663]
[1641483601487,0.9161,3394.6,3394.1,0.99952324]
[1641483601729,0.9161,3394.6,3394.1,1.4258282]
[1641483601930,0.00170527,3394.5,3394.1,1.4258282]
[1641483602227,0.00113685,3394.4,3394.1,1.4258282]
[1641483602428,0.00113685,3394.4,3393.8,2.1387423]
[1641483602634,0.00170527,3394.5,3394.3,2.1387423]
[1641483603034,0.00113685,3394.4,3394.3,2.1387423]
[1641483603439,0.00113685,3394.4,3394.2,1.42260565]
[1641483604032,0.00113685,3394.4,3394.3,5.37260565]
[1641483604233,0.00113685,3394.4,3394.3,1.42260565]
[1641483605040,0.00113685,3394.4,3394.1,1.42260565]
[1641483605677,0.00113685,3394.4,3394.3,1.06809863]
[1641483607076,0.00113685,3394.4,3394.3,0.91644811]
[1641483608078,0.00113685,3394.4,3394.0,1.08305144]
[1641483609134,0.00113685,3394.4,3394.0,2.50565709]
[1641483609834,0.00113685,3394.4,3394.1,1.42260565]
[1641483611035,0.00113685,3394.4,3394.1,2.42260565]
[1641483611238,0.00113685,3394.4,3394.2,2.1387423]
[1641483611442,0.00113685,3394.4,3394.2,2.7278508]
[1641483611636,0.00113685,3394.4,3394.2,3.7278508]
[1641483612237,0.00113685,3394.4,3394.3,15.07689426]
[1641483612437,0.9161,3394.6,3394.4,10.8]
[1641483613074,0.9161,3394.6,3394.3,4.27689426]
[1641483613877,0.9161,3394.6,3394.4,1.42981807]
[1641483614575,0.9161,3394.6,3394.4,0.04301807]
[1641483614576,1.65288,3394.6,3394.4,0.04301807]
[1641483614876,1.65288,3394.6,3394.2,2.1387423]
[1641483614877,17.3,3394.4,3394.2,0.19131233]
[1641483615075,17.3,3394.4,3393.9,0.00170527]
[1641483615476,0.3,3394.3,3393.7,0.00397897]
[1641483615679,18.38784,3394.2,3393.7,0.00397897]
[1641483616077,1.0,3394.1,3393.7,0.00397897]
[1641483616277,17.3,3393.9,3393.5,0.00511581]
[1641483616479,17.3,3393.7,3393.2,0.00682108]
[1641483616732,1.47413,3393.5,3393.2,0.00682108]
[1641483617132,17.3,3393.3,3393.2,0.00682108]
[1641483617630,18.3,3393.3,3393.2,0.00682108]
[1641483617831,1.47424,3393.0,3392.4,0.01136847]
[1641483618030,0.73711,3392.7,3392.4,0.01136847]
[1641483618830,1.03711,3392.7,3392.3,0.01193689]
[1641483619231,1.92392577,3392.6,3392.3,0.01193689]
[1641483619635,0.42218739,3393.3,3392.3,0.01193689]
[1641483620230,2.61577112,3393.2,3392.3,0.01193689]
[1641483620477,0.73704,3392.9,3392.3,0.01193689]
[1641483620676,2.1500574,3392.4,3392.2,0.01250532]
[1641483621483,2.8475574,3392.4,3392.2,0.01250532]
[1641483621879,3.8847174,3392.4,3392.2,0.01250532]
[1641483622281,17.3,3392.3,3392.2,0.01250532]
[1641483622480,17.3,3392.3,3392.1,0.0085]
[1641483622481,10.8,3392.2,3392.1,0.0085]
[1641483622680,11.151,3392.2,3392.1,0.0085]
[1641483622879,11.151,3392.2,3391.3,4.0099318]
[1641483622880,1.47481,3392.0,3391.3,4.0099318]
[1641483623080,0.73743,3391.8,3391.3,3.0842313]
[1641483623280,0.651,3391.7,3391.4,0.00454739]
[1641483623480,17.3,3391.5,3391.3,2.96852152]
[1641483623686,17.951,3391.5,3391.3,2.96852152]
[1641483623882,18.6885,3391.5,3390.4,3.9295]
[1641483624125,0.7375,3391.3,3390.4,3.9295]
[1641483624428,0.7375,3391.3,3391.0,0.00227369]
[1641483624627,17.3,3391.2,3391.0,0.00227369]
[1641483625626,0.73751,3391.1,3390.6,0.00454738]
[1641483625926,0.73751,3390.9,3390.6,0.00454738]
[1641483626125,0.34505149,3390.9,3390.6,0.00454738]
[1641483626726,0.34505149,3390.9,3390.6,0.00394526]
[1641483626932,1.9939838,3390.8,3390.6,0.00394526]
[1641483627127,2.2939838,3390.8,3390.7,0.00397896]
[1641483627328,19.5939838,3390.8,3390.7,0.00397896]
[1641483627975,16.75133186,3390.8,3390.7,0.00397896]
[1641483628181,1.72559119,3390.8,3390.7,0.00397896]
[1641483629178,2.21339685,3391.6,3390.7,1.02668875]
[1641483629179,0.00113685,3391.6,3390.7,1.02668875]
[1641483629378,0.00113685,3391.6,3391.1,0.5897237]
[1641483629781,0.00113685,3391.6,3391.2,0.00113684]
[1641483630179,1.6366921,3391.6,3391.2,0.00113684]
[1641483631825,1.6366921,3391.6,3390.9,0.00284211]
[1641483632024,1.6366921,3391.6,3390.9,1.00284211]
[1641483632228,1.6366921,3391.6,3391.0,0.00394463]
[1641483632627,0.00113685,3391.6,3391.1,0.00170527]
[1641483636778,0.00113685,3391.6,3391.3,2.8452113]
[1641483637679,0.00113685,3391.6,3391.4,0.00394439]
[1641483638079,0.00113685,3391.6,3391.4,2.17459976]
[1641483638680,0.00113685,3391.6,3391.5,7.11514529]
[1641483638881,0.00113685,3391.6,3391.5,3.66514529]
[1641483639727,0.00113685,3391.6,3391.5,1.49448992]
[1641483640728,0.00113685,3391.6,3391.5,2.17065537]
[1641483641326,0.00113685,3391.6,3391.5,3.66514529]
[1641483642130,0.00113685,3391.6,3391.5,2.17065537]
[1641483642729,0.00113685,3391.6,3391.5,3.66514529]
[1641483643377,0.00113685,3391.6,3391.5,2.17065537]
[1641483643777,2.85113685,3391.6,3391.5,2.17065537]
[1641483643975,0.35213685,3391.6,3391.5,1.49448992]
[1641483644174,18.25353685,3391.6,3391.5,1.49448992]
[1641483644577,18.55353685,3391.6,3391.5,1.49448992]
[1641483644776,20.97793656,3391.6,3391.5,1.08685317]
[1641483645192,20.97793656,3391.6,3391.5,1.07125317]
[1641483645384,20.97793656,3391.6,3391.4,0.00394439]
[1641483645385,18.37125317,3391.5,3391.4,0.00394439]
[1641483645576,18.72225317,3391.5,3391.4,0.00394439]
[1641483646632,18.72225317,3391.5,3391.1,1.45084283]
[1641483646938,10.8,3391.0,3390.7,2.17065537]
[1641483647135,18.651,3390.9,3390.7,2.17065537]
[1641483647333,6.45,3390.7,3390.4,2.8452113]
[1641483647541,0.73775,3390.6,3390.4,2.8163113]